lending/lending_fUSD_20240504
["ID","MTS","AMOUNT","RATE_DAILY","PERIOD"]
[325381193,1714796427945,-368.76,0.0001289,2]
[325381194,1714796427967,-2225.42704476,0.00012898,2]
[325381195,1714796427988,-3665.47724467,0.00012898,2]
[325381196,1714796428008,-448.80218963,0.00012898,2]
[325381197,1714796428032,-8110.8073,0.00012898,2]
[325381198,1714796428052,-314.527,0.00012899,2]
[325381199,1714796439260,534.79759922,0.00012899,2]
[325381200,1714796442119,-231011.35895518,0.000129,2]
[325381239,1714797031937,-155.0,0.00012667,2]
[325381240,1714797031947,-475.10225962,0.00012668,2]
[325381241,1714797031958,-59.6953396,0.00012668,2]
[325381242,1714797031967,-3498.38014246,0.00012671,2]
[325381243,1714797031976,-276.366,0.000128,2]
[325381244,1714797031985,-1560.64174384,0.00012857,2]
[325381245,1714797031994,-417.48727554,0.0001287,2]
[325381246,1714797032003,-11084.73314482,0.000129,2]
[325381247,1714797032012,-164.44631306,0.000129,2]
[325381248,1714797032021,-194.2152,0.000129,2]
[325381249,1714797032029,-314.527,0.000129,2]
[325381250,1714797032038,-6399.37002918,0.000129,2]
[325381251,1714797032048,-331.53792838,0.000129,2]
[325381252,1714797032057,-838.4039,0.000129,2]
[325381253,1714797032066,-355.6058,0.000129,2]
[325381254,1714797032075,-175.41051063,0.000129,2]
[325381255,1714797032084,-3011.3421,0.000129,2]
[325381256,1714797032094,-252.83180547,0.000129,2]
[325381257,1714797032103,-331.66119292,0.000129,2]
[325381258,1714797032112,-600.0,0.00012986,2]
[325381259,1714797032121,-238.41936349,0.00012998,2]
[325381260,1714797032131,-300.72897799,0.00012998,2]
[325381261,1714797032140,-3250.19764459,0.00012998,2]
[325381262,1714797032149,-249.32809512,0.00012998,2]
[325381263,1714797032159,-184.07887674,0.00012998,2]
[325381264,1714797032168,-155.76867218,0.00012998,2]
[325381265,1714797032177,-715.22293148,0.00012998,2]
[325381266,1714797032187,-155.59428779,0.00012998,2]
[325381267,1714797032197,-711.79170587,0.00012998,2]
[325381268,1714797032206,-891.59008358,0.00012998,2]
[325381269,1714797032215,-161.74102731,0.00012998,2]
[325381270,1714797032225,-3665.47724467,0.00012998,2]
[325381271,1714797032234,-670.14514561,0.00012998,2]
[325381272,1714797032243,-2225.42704476,0.00012998,2]
[325381273,1714797032252,-448.80218963,0.00012998,2]
[325381274,1714797032261,-194.19699782,0.00012999,2]
[325381275,1714797032271,-451.01746561,0.00012999,2]
[325381276,1714797032280,-233003.10962203,0.00013,2]
[325381283,1714797032405,-368.76,0.0001299,2]
[325381285,1714797032414,-3336.42453,0.00013,2]
[325381288,1714797032433,-1492.99751267,0.00013,2]
[325381316,1714797032706,-49028.27868,0.00013,2]
[325381317,1714797032717,-792.5901174,0.00013,2]
[325381318,1714797032729,-3185.94146673,0.00013,2]
[325381335,1714797037949,-368.76,0.0001299,2]
[325381336,1714797037958,-242.88505772,0.0001299,2]
[325381337,1714797038012,-125.87494228,0.0001299,2]
[325381338,1714797038022,-368.76,0.0001299,2]
[325381339,1714797038031,-368.76,0.0001299,2]
[325381340,1714797038040,-368.76,0.0001299,2]
[325381341,1714797038049,-368.76,0.0001299,2]
[325381342,1714797038058,-368.76,0.0001299,2]
[325381343,1714797038067,-368.76,0.0001299,2]
[325381344,1714797038075,-368.76,0.0001299,2]
[325381345,1714797038085,-180.00460454,0.0001299,2]
[325381346,1714797038094,-180.00460454,0.0001299,2]
[325381347,1714797038103,-180.00460454,0.0001299,2]
[325381348,1714797038112,-876228.94997365,0.00013,2]
[325381349,1714797038132,-7525.5,0.00013,2]
[325381350,1714797038197,-1249004.92295894,0.00013,2]
[325381351,1714797038209,-80623.22158228,0.00013,2]
[325381356,1714797041458,-728.32010003,0.00013,2]
[325381357,1714797041479,-2837.32402686,0.00013,2]
[325381369,1714797043392,-1620.87313189,0.00013,2]
[325381370,1714797043407,-1912.01650934,0.00013,2]
[325381371,1714797043444,-1382.00995688,0.00013,2]
[325381374,1714797046053,-1257.02,0.00013,2]
[325381375,1714797046070,-349.53199999,0.00013,2]
[325381376,1714797046093,-22493.45170001,0.00013,2]
[325381377,1714797046126,-2670.66583115,0.00013,2]
[325381379,1714797046340,-993.06454,0.00013,2]
[325381420,1714798232356,-454.44593816,0.00011948,2]
[325381421,1714798232368,-80.35166106,0.00011948,2]
[325381422,1714798232377,-389.47611894,0.00011949,2]
[325381423,1714798232577,-600.0,0.00011949,2]
[325381425,1714798232589,-10.52388106,0.00011949,2]
[325381427,1714798232599,-536.56930293,0.0001195,2]
[325381429,1714798232608,-452.90681601,0.00011952,2]
[325381436,1714798232668,-369.95948262,0.00011952,2]
[325381438,1714798232680,-33.0215223,0.00011952,2]
[325381440,1714798232689,-150.0,0.00011953,2]
[325381442,1714798232698,-284.4784777,0.00012,2]
[325381456,1714798238267,-11153.32347797,0.00012,2]
[325381457,1714798238277,-5964.63226146,0.00012031,2]
[325381458,1714798238286,-1820.4285041,0.00012048,2]
[325381459,1714798238298,-14724.3414959,0.00012048,2]
[325381460,1714798238307,-250.0,0.00012056,2]
[325381461,1714798238316,-446.4,0.00012056,2]
[325381462,1714798238326,-441.86,0.00012075,2]
[325381463,1714798238335,-591.05,0.00012105,2]
[325381464,1714798238344,-7060.6,0.00012218,2]
[325381465,1714798238354,-252.8,0.0001272,2]
[325381466,1714798238364,-3498.38014246,0.00012727,2]
[325381467,1714798238373,-296.971,0.00012799,2]
[325381468,1714798238383,-247.70776882,0.00012799,2]
[325381469,1714798238392,-325.85817789,0.00012799,2]
[325381470,1714798238401,-460.8712,0.000128,2]
[325381471,1714798238411,-186.67,0.0001286,2]
[325381472,1714798238421,-1560.64174384,0.00012861,2]
[325381473,1714798238431,-794.28993796,0.00012868,2]
[325381474,1714798238440,-161.15850329,0.00012889,2]
[325381475,1714798238451,-363.61,0.00012889,2]
[325381476,1714798238460,-363.61,0.00012889,2]
[325381477,1714798238470,-363.61,0.00012889,2]
[325381478,1714798238479,-363.61,0.0001289,2]
[325381479,1714798238488,-499.99,0.00012898,2]
[325381480,1714798238498,-420.14131872,0.00012898,2]
[325381481,1714798238514,-686901.55132004,0.00012899,2]
[325381482,1714798238524,-12660.1798,0.000129,2]
[325381483,1714798238534,-106319.2436,0.000129,2]
[325381484,1714798238544,-165.52762761,0.000129,2]
[325381485,1714798238555,-174.12900968,0.000129,2]
[325381486,1714798238565,-156.79800347,0.000129,2]
[325381487,1714798238575,-7330.68216486,0.000129,2]
[325381489,1714798238585,-168.55453698,0.000129,2]
[325381491,1714798238595,-207.36270691,0.000129,2]
[325381493,1714798238604,-697.74154792,0.000129,2]
[325381495,1714798238614,-257.39021498,0.000129,2]
[325381497,1714798238624,-150.0,0.00012952,2]
[325381499,1714798238634,-150.0,0.00012952,2]
[325381502,1714798238644,-161.15850329,0.0001299,2]
[325381505,1714798238654,-161.15850329,0.0001299,2]
[325381509,1714798238664,-363.61,0.0001299,2]
[325381513,1714798238673,-363.61,0.0001299,2]
[325381516,1714798238682,-363.61,0.0001299,2]
[325381519,1714798238692,-363.61,0.0001299,2]
[325381522,1714798238702,-363.61,0.0001299,2]
[325381524,1714798238711,-363.61,0.0001299,2]
[325381526,1714798238721,-224.32435233,0.00012998,2]
[325381528,1714798238731,-478.3662598,0.00012998,2]
[325381530,1714798238741,-2012.64553609,0.00012998,2]
[325381531,1714798238750,-155.41317959,0.00012998,2]
[325381533,1714798238761,-2460.44181538,0.00012998,2]
[325381535,1714798238771,-678.74439078,0.00012998,2]
[325381537,1714798238780,-158.64178796,0.00012998,2]
[325381539,1714798238790,-157.22038164,0.00012998,2]
[325381541,1714798238800,-155.59075534,0.00012998,2]
[325381543,1714798238809,-180.08414965,0.00012998,2]
[325381544,1714798238819,-717.43794106,0.00012998,2]
[325381545,1714798238828,-1000.0,0.00012999,2]
[325381546,1714798238837,-306420.40220634,0.00013,2]
[325381547,1714798238851,-3145.12011062,0.00013,2]
[325381548,1714798238960,-450.89332225,0.00013,2]
[325381549,1714798238972,-1157.98995818,0.00013,2]
[325381550,1714798238984,-512.307232,0.00013,2]
[325381551,1714798239030,-1249004.92295894,0.00013,2]
[325381552,1714798239042,-80623.22158228,0.00013,2]
[325381553,1714798239176,-1000.51593,0.00013,2]
[325381582,1714798240345,-843.4,0.00013,2]
[325381587,1714798240402,-25258.70130853,0.00013,2]
[325381593,1714798240460,-1217.47953502,0.00013,2]
[325381604,1714798240586,-1017.89207756,0.00013,2]
[325381605,1714798240670,-1319.0,0.00013,2]
[325381606,1714798240683,-1467.32949427,0.00013,2]
[325381607,1714798240696,-2208.92762712,0.00013,2]
[325381623,1714798243356,-326.4325306,0.00013,2]
[325381624,1714798243368,-20755.1242,0.00013,2]
[325381625,1714798243378,-1000.54565817,0.00013,2]
[325381626,1714798243550,-389970.01027016,0.00013,2]
[325381627,1714798243562,-274.733615,0.00013,2]
[325381628,1714798243727,-7422.1201178,0.00013,2]
[325381629,1714798243800,-1038986.87358788,0.00013,2]
[325381640,1714798246966,-728.70380814,0.00012799,2]
[325381643,1714798623280,150.0,0.00010993,2]
[325381667,1714799431451,-402.24,0.00011895,2]
[325381668,1714799431461,-150.0,0.00011946,2]
[325381669,1714799431471,-239.39952452,0.00011972,2]
[325381670,1714799431484,-25.19047548,0.00011972,2]
[325381671,1714799431493,-250.0,0.00011976,2]
[325381672,1714799431503,-1443.50834161,0.00012004,2]
[325381673,1714799431547,-477.24690231,0.00012004,2]
[325381674,1714799431565,-446.9,0.00012004,2]
[325381675,1714799431593,-9052.17475608,0.00012004,2]
[325381676,1714799431603,-188.51,0.00012007,2]
[325381677,1714799431612,-357.12,0.0001213,2]
[325381678,1714799431622,-402.23224392,0.00012131,2]
[325381681,1714799432071,-503.022718,0.00012131,2]
[325381682,1714799432083,-368.36047548,0.00012131,2]
[325381683,1714799435831,600.0,0.000124,4]
[325381684,1714799437852,-488.1294,0.00012131,2]
[325381686,1714799437864,-8238.2551626,0.00012131,2]
[325381688,1714799437874,-1981.5858548,0.000123,2]
[325381690,1714799437883,-160.07987315,0.0001253,2]
[325381692,1714799437892,-419.42,0.000126,2]
[325381693,1714799437901,-522.7,0.000126,2]
[325381694,1714799437911,-188.51,0.00012632,2]
[325381695,1714799437919,-1558.22950256,0.00012688,2]
[325381696,1714799437928,-414.44,0.000127,2]
[325381697,1714799437938,-911.73,0.000127,2]
[325381698,1714799437947,-911.73,0.000127,2]
[325381699,1714799437956,-414.44,0.000127,2]
[325381700,1714799437965,-329.17,0.000127,2]
[325381701,1714799437974,-911.73,0.000127,2]
[325381702,1714799437984,-414.44,0.000127,2]
[325381703,1714799437992,-414.44,0.000127,2]
[325381704,1714799438003,-911.73,0.000127,2]
[325381705,1714799438013,-419.66,0.000127,2]
[325381706,1714799438023,-150.76,0.000127,2]
[325381707,1714799438032,-910.28,0.000127,2]
[325381708,1714799438043,-332.1,0.000127,2]
[325381709,1714799438052,-522.7,0.000127,2]
[325381710,1714799438061,-413.64,0.000127,2]
[325381711,1714799438071,-302.35,0.000127,2]
[325381712,1714799438080,-539.90058201,0.00012797,2]
[325381713,1714799438369,-1000.0,0.00012798,2]
[325381714,1714799438380,-8383.51409186,0.00012799,2]
[325381715,1714799438390,-1000.0,0.00012799,2]
[325381716,1714799438400,-100000.0,0.00012799,2]
[325381717,1714799438409,-500.0,0.00012799,2]
[325381718,1714799438419,-155.0,0.000128,2]
[325381719,1714799438429,-12627.1281049,0.000128,2]
[325381720,1714799438439,-3498.38014246,0.00012808,2]
[325381721,1714799438448,-21067.43963971,0.00012868,2]
[325381722,1714799438458,-167.62551784,0.00012869,2]
[325381723,1714799438467,-677.817,0.0001287,2]
[325381724,1714799438477,-325.33,0.00012881,2]
[325381725,1714799438487,-11589.56496624,0.00012897,2]
[325381726,1714799438497,-1000.0,0.00012898,2]
[325381727,1714799438507,-166.36124738,0.000129,2]
[325381728,1714799438517,-499.99,0.000129,2]
[325381729,1714799438527,-160.07987314,0.000129,2]
[325381730,1714799438536,-150.0,0.000129,2]
[325381731,1714799438547,-910.86,0.000129,2]
[325381732,1714799438556,-173.56943637,0.000129,2]
[325381733,1714799438565,-8123.34581773,0.000129,2]
[325381734,1714799438577,-465.16103194,0.000129,2]
[325381735,1714799438588,-203.06498675,0.000129,2]
[325381736,1714799438598,-321.50591664,0.000129,2]
[325381737,1714799438607,-800.0,0.00012959,2]
[325381738,1714799438617,-1000.0,0.0001297,2]
[325381739,1714799438627,-1000.0,0.0001297,2]
[325381740,1714799438637,-1832.46434533,0.0001297,2]
[325381741,1714799438646,-239.92,0.0001297,2]
[325381742,1714799438656,-142329.22300769,0.0001298,2]
[325381743,1714799438665,-324.539588,0.00012989,2]
[325381744,1714799438674,-978.1362815,0.00012989,2]
[325381745,1714799438684,-1400.7587983,0.00012989,2]
[325381746,1714799438693,-181.76387745,0.0001299,2]
[325381747,1714799438702,-181.76387745,0.0001299,2]
[325381748,1714799438711,-181.76387745,0.0001299,2]
[325381749,1714799438720,-239.92,0.0001299,2]
[325381750,1714799438730,-239.92,0.0001299,2]
[325381751,1714799438739,-239.92,0.0001299,2]
[325381752,1714799438748,-239.92,0.0001299,2]
[325381753,1714799438758,-239.92,0.0001299,2]
[325381754,1714799438767,-311.5486585,0.00012991,2]
[325381755,1714799438777,-938.9826621,0.00012991,2]
[325381756,1714799438786,-1344.6881077,0.00012991,2]
[325381757,1714799438799,-857.07840683,0.00012998,2]
[325381758,1714799438808,-163.50990513,0.00012998,2]
[325381759,1714799438818,-178.75134766,0.00012998,2]
[325381760,1714799438827,-1310.89291012,0.00012998,2]
[325381761,1714799438836,-953.19083685,0.00012998,2]
[325381762,1714799438846,-219.56561751,0.00012998,2]
[325381763,1714799438856,-408.09757157,0.00012998,2]
[325381764,1714799438866,-792.79488993,0.00012998,2]
[325381765,1714799438876,-1623.24851542,0.00012999,2]
[325381766,1714799438886,-534.79759922,0.00012999,2]
[325381767,1714799438895,-276.90455109,0.00012999,2]
[325381768,1714799438905,-4334.6411048,0.00012999,2]
[325381769,1714799438914,-2599.25771804,0.00012999,2]
[325381770,1714799438924,-553319.20968153,0.00013,2]
[325381771,1714799438954,-953.23988846,0.00013,2]
[325381772,1714799438966,-457304.21441273,0.00013,2]
[325381773,1714799438976,-10098.32432157,0.00013,2]
[325381774,1714799438985,-233078.14985702,0.00013,2]
[325381775,1714799438995,-5018.78622209,0.00013,2]
[325381776,1714799439004,-500.27030125,0.00013,2]
[325381777,1714799439014,-487.29554568,0.00013,2]
[325381778,1714799439023,-542517.8822986,0.00013,2]
[325381779,1714799439035,-80623.22158228,0.00013,2]
[325381780,1714799439137,1300.0,0.000125,4]
[325381786,1714799439667,-239.92,0.0001299,2]
[325381787,1714799439678,-239.71999999,0.0001299,2]
[325381788,1714799439705,-0.20000001,0.0001299,2]
[325381789,1714799439715,-239.92,0.0001299,2]
[325381790,1714799439724,-239.92,0.0001299,2]
[325381791,1714799439733,-2050.9521005,0.00013,2]
[325381793,1714799440159,1900.0,0.000126,4]
[325381794,1714799442126,2600.0,0.000127,4]
[325381806,1714799442540,-3053.49619239,0.00013,2]
[325381810,1714799444434,3200.0,0.000128,4]
[325381827,1714799445479,-205.404047,0.000129,2]
[325381828,1714799445488,-522.26,0.000129,2]
[325381829,1714799445497,-2571.84737204,0.00013,2]
[325381830,1714799445509,-25782.83125,0.00013,2]
[325381832,1714799446305,600.0,0.000129,4]
[325381833,1714799464023,313.18035922,0.00011698,2]
[325381863,1714800309025,-194.27,0.00012181,2]
[325381864,1714800309049,-1000.0,0.00012245,2]
[325381865,1714800309073,-524.56491145,0.00012246,2]
[325381866,1714800309097,-1316.7024,0.00012248,2]
[325381867,1714800309120,-150.0,0.00012258,2]
[325381868,1714800309143,-1143.86500859,0.00012348,2]
[325381869,1714800309166,-250.0,0.00012466,2]
[325381870,1714800309190,-154.33,0.00012485,2]
[325381871,1714800309215,-1645.28,0.00012531,2]
[325381872,1714800309239,-1560.64174384,0.00012661,2]
[325381873,1714800309264,-569.98,0.00012713,2]
[325381874,1714800309288,-12627.1281049,0.000128,2]
[325381875,1714800309312,-3498.38014246,0.00012857,2]
[325381876,1714800309339,-417.8,0.00012867,2]
[325381877,1714800309364,-167.62551784,0.00012869,2]
[325381878,1714800309388,-250.0,0.00012874,2]
[325381879,1714800309412,-487.29554568,0.000129,2]
[325381881,1714800309441,-500.27030125,0.000129,2]
[325381882,1714800309467,-3541.86632399,0.000129,2]
[325381891,1714800388081,751.50500228,0.00011697,2]
[325381904,1714800481271,-1000.0,0.00012305,2]
[325381905,1714800481298,-340.26,0.00012306,2]
[325381906,1714800481321,-156.0,0.00012345,2]
[325381907,1714800481344,-392.26263285,0.00012347,2]
[325381908,1714800481366,-250.0,0.00012366,2]
[325381909,1714800481390,-155.0,0.000128,2]
[325381910,1714800481417,-12627.1281049,0.000128,2]
[325381911,1714800481444,-252.69138473,0.00012867,2]
[325381912,1714800481470,-167.62551784,0.00012869,2]
[325381913,1714800481496,-2344.49834,0.0001287,2]
[325381914,1714800481520,-321.50591663,0.00012899,2]
[325381915,1714800481543,-20421.99707601,0.000129,2]
[325381916,1714800481568,-343.3913,0.000129,2]
[325381917,1714800481590,-166.36124735,0.000129,2]
[325381918,1714800481611,-373.2221,0.000129,2]
[325381919,1714800481634,-1027.55802889,0.000129,2]
[325381920,1714800481656,-208.85737918,0.000129,2]
[325381921,1714800481683,-171.59347666,0.000129,2]
[325381922,1714800481708,-1085.2937112,0.00012968,2]
[325381923,1714800481731,-499.99,0.00012968,2]
[325381924,1714800481754,-4587.97821425,0.00012985,2]
[325381925,1714800481776,-800.0,0.00012986,2]
[325381926,1714800481800,-5675.9343831,0.00012988,2]
[325381927,1714800481827,-1984.3943017,0.00012988,2]
[325381928,1714800481850,-1623.5574408,0.00012988,2]
[325381929,1714800481874,-171.37,0.0001299,2]
[325381930,1714800481898,-171.37,0.0001299,2]
[325381931,1714800481926,-171.37,0.0001299,2]
[325381932,1714800481950,-171.37,0.0001299,2]
[325381933,1714800481974,-5605.1089279,0.00012991,2]
[325381934,1714800481997,-1948.3281816,0.00012991,2]
[325381935,1714800482020,-1594.0494858,0.00012991,2]
[325381936,1714800482045,-524.87394802,0.00012997,2]
[325381937,1714800482070,-420.92709039,0.00012998,2]
[325381938,1714800482093,-156.49056261,0.00012998,2]
[325381939,1714800482118,-545.99933752,0.00012998,2]
[325381940,1714800482141,-155.4680935,0.00012998,2]
[325381941,1714800482166,-1357.43117203,0.00012998,2]
[325381942,1714800482190,-1311.22838662,0.00012999,2]
[325381943,1714800482215,-1237651.51425792,0.00012999,2]
[325381951,1714800631662,-1000.0,0.00012866,2]
[325381952,1714800631672,-1073.58093551,0.00012867,2]
[325381953,1714800631682,-167.62551784,0.00012869,2]
[325381954,1714800631691,-177.44952229,0.000129,2]
[325381955,1714800631701,-321.50591663,0.000129,2]
[325381956,1714800631713,-420.98810773,0.00012934,2]
[325381957,1714800631789,-732.91429086,0.00012934,2]
[325381958,1714800631887,-840.52331929,0.00012934,2]
[325381959,1714800631900,-5630.17352957,0.00012934,2]
[325381960,1714800631916,-816.24453498,0.00012934,2]
[325381988,1714800637938,-310.10735464,0.000129,2]
[325381989,1714800637948,-2547.64435183,0.00012934,2]
[325381990,1714800637965,-1638.63997064,0.00012934,2]
[325381991,1714800637974,-1000.0,0.00012935,2]
[325381992,1714800637984,-704.04677434,0.00012935,2]
[325381993,1714800638008,-353.06192566,0.00012935,2]
[325381994,1714800638019,-5963.2076945,0.00012988,2]
[325381995,1714800638028,-5758.6551687,0.00012991,2]
[325381997,1714800638038,-155.85862713,0.00012998,2]
[325381999,1714800638048,-336453.25081814,0.00012999,2]
[325382001,1714800638057,-171.42471041,0.00012999,2]
[325382002,1714800638066,-1649.33425831,0.00012999,2]
[325382003,1714800638076,-713061.06115861,0.00013,2]
[325382004,1714800638096,-2036.31012841,0.00013,2]
[325382005,1714800638109,-381.33465368,0.00013,2]
[325382006,1714800638150,-1249004.92295894,0.00013,2]
[325382007,1714800638161,-80623.22158228,0.00013,2]
[325382008,1714800638173,-796.44791203,0.00013,2]
[325382009,1714800639975,-167.62551784,0.00012869,2]
[325382010,1714800639985,-8836.71644855,0.00013,2]
[325382011,1714800639997,-2602.60000024,0.00013,2]
[325382012,1714800640131,-1035.14505508,0.00013,2]
[325382174,1714800642912,-27253.78116483,0.00013,2]
[325382175,1714800643037,-1362.61980105,0.00013,2]
[325382181,1714800646613,-0.01220922,0.00013,2]
[325382182,1714800646663,-1264.406,0.00013,2]
[325382183,1714800646703,-1246.58900404,0.00013,2]
[325382185,1714800686494,1723.4363832,9.75e-05,2]
[325382186,1714800733187,7506.91016767,9.75e-05,2]
[325382187,1714800738976,1473.13928553,9.75e-05,2]
[325382188,1714800742553,155.0,9.75e-05,2]
[325382189,1714800742890,867.23323882,9.75e-05,2]
[325382190,1714800753371,6729.88390198,9.75e-05,2]
[325382191,1714800754949,411.45452887,9.75e-05,2]
[325382192,1714800756701,155.97022055,9.75e-05,2]
[325382193,1714800758976,1206.07041131,9.75e-05,2]
[325382195,1714800900675,311.37,0.00011923,2]
[325382196,1714800938316,250.0,0.00011966,2]
[325382199,1714801285046,321.79,0.00011937,2]
[325382201,1714801294379,1013.42,0.00011937,2]
[325382202,1714801295922,1786.2014417,0.00011999,2]
[325382203,1714801303924,155.0,0.00011999,2]
[325382204,1714801325209,546.17516146,0.00011999,2]
[325382205,1714801401425,1000.0,0.00011999,2]
[325382206,1714801413717,156.0,0.00011999,2]
[325382207,1714801534465,1000.0,0.00011999,2]
[325382208,1714801535280,264.70781484,0.00011939,2]
[325382209,1714801590568,-1266.54368406,0.00012,2]
[325382210,1714801590590,-150.0,0.00012002,2]
[325382211,1714801590612,-250.0,0.00012011,2]
[325382212,1714801590633,-200.0,0.00012022,2]
[325382213,1714801590654,-2994.43,0.00012022,2]
[325382214,1714801590679,-172.45,0.00012064,2]
[325382215,1714801590702,-167.78,0.00012092,2]
[325382216,1714801590727,-655.99,0.00012116,2]
[325382217,1714801590751,-392.26263285,0.00012348,2]
[325382218,1714801590772,-499.99,0.00012424,2]
[325382219,1714801590797,-1029.87,0.00012424,2]
[325382220,1714801590817,-150.99,0.00012639,2]
[325382221,1714801590839,-150.99,0.00012639,2]
[325382222,1714801590866,-1560.64174384,0.00012639,2]
[325382223,1714801590890,-12627.1281049,0.000128,2]
[325382224,1714801590913,-3498.38014246,0.00012826,2]
[325382225,1714801590935,-252.69138473,0.00012868,2]
[325382226,1714801590958,-167.62551784,0.00012869,2]
[325382227,1714801590981,-200.0,0.00012895,2]
[325382228,1714801591006,-1000.0,0.00012895,2]
[325382229,1714801591028,-200.0,0.00012895,2]
[325382230,1714801591056,-500.0,0.00012895,2]
[325382231,1714801591081,-200.0,0.00012896,2]
[325382232,1714801591104,-1000.0,0.00012896,2]
[325382233,1714801591129,-200.0,0.00012896,2]
[325382234,1714801591152,-200.0,0.00012896,2]
[325382235,1714801591176,-200.0,0.00012896,2]
[325382236,1714801591198,-112.23678932,0.00012896,2]
[325382242,1714801773285,1102.93,0.00025108,120]
[325382247,1714801831956,-1000.0,0.00012347,2]
[325382248,1714801831966,-845.29162567,0.00012348,2]
[325382249,1714801831985,-2337.58588803,0.00012348,2]
[325382250,1714801832012,-4.70549689,0.00012348,2]
[325382251,1714801832022,-285.93,0.00012761,2]
[325382252,1714801832031,-357.93108097,0.00012896,2]
[325382253,1714801832042,-529.83212971,0.00012896,2]
[325382254,1714801832051,-1000.0,0.00012896,2]
[325382255,1714801832060,-1000.0,0.00012896,2]
[325382256,1714801832070,-200.0,0.00012896,2]
[325382257,1714801832080,-500.0,0.00012896,2]
[325382258,1714801832089,-500.0,0.00012896,2]
[325382259,1714801832098,-3446.57266482,0.00012899,2]
[325382260,1714801832121,-261.62382088,0.00012899,2]
[325382261,1714801832132,-629.99914214,0.00012899,2]
[325382262,1714801832147,-403.78594085,0.00012899,2]
[325382263,1714801832174,-1329.28402773,0.00012899,2]
[325382270,1714801832265,-364.7,0.00012899,2]
[325382275,1714801832304,-275.02123254,0.00012899,2]
[325382278,1714801832315,-13711.01027104,0.00012899,2]
[325382280,1714801832324,-343.3913,0.00012899,2]
[325382282,1714801832333,-559.76088801,0.000129,2]
[325382284,1714801832345,-861.87782854,0.000129,2]
[325382366,1714801838251,-159.26,0.00012767,2]
[325382367,1714801838260,-159.26,0.00012822,2]
[325382368,1714801838270,-159.26,0.00012878,2]
[325382369,1714801838280,-1306.7074228,0.000129,2]
[325382370,1714801838291,-8850.13706658,0.000129,2]
[325382371,1714801838301,-166.36124735,0.000129,2]
[325382372,1714801838310,-177.44952229,0.000129,2]
[325382375,1714801838320,-321.50591663,0.000129,2]
[325382376,1714801838329,-205.51160581,0.000129,2]
[325382378,1714801838339,-159.26,0.00012933,2]
[325382380,1714801838349,-1085.2937112,0.00012968,2]
[325382383,1714801838358,-1000.0,0.0001297,2]
[325382384,1714801838368,-1000.0,0.0001297,2]
[325382388,1714801838377,-1164.04393093,0.00012986,2]
[325382389,1714801838424,-3423.93428332,0.00012986,2]
[325382390,1714801838433,-159.26,0.00012989,2]
[325382391,1714801838442,-1572.104494,0.00012989,2]
[325382392,1714801838451,-3498.1825695,0.00012989,2]
[325382393,1714801838461,-6041.0594006,0.00012989,2]
[325382394,1714801838471,-20182.3955741,0.00012989,2]
[325382395,1714801838480,-155.0,0.00012998,2]
[325382396,1714801838490,-156.49056261,0.00012998,2]
[325382397,1714801838500,-1357.43117203,0.00012998,2]
[325382398,1714801838509,-155.4680935,0.00012998,2]
[325382399,1714801838518,-199.90622525,0.00012998,2]
[325382400,1714801838527,-155.21746929,0.00012998,2]
[325382401,1714801838536,-545.71752236,0.00012998,2]
[325382402,1714801838546,-303.60706652,0.00012998,2]
[325382403,1714801838555,-559.05304806,0.00012998,2]
[325382404,1714801838565,-420.92709039,0.00012998,2]
[325382405,1714801838574,-1000.0,0.00012998,2]
[325382406,1714801838584,-370.19548805,0.00012999,2]
[325382407,1714801838593,-218.23939816,0.00012999,2]
[325382408,1714801838603,-3917.95453389,0.00012999,2]
[325382409,1714801838612,-295.38566276,0.00012999,2]